[Event "44th Chess Olympiad Open 2022"]
[Site "Chennai"]
[Date "2022.07.31"]
[Round "3.72"]
[White "Frick, Renato"]
[Black "Mimbasa Kutesa, Willy"]
[Result "0-1"]
[WhiteElo "1900"]
[BlackElo "1755"]
[Annotator "NA"]
[PlyCount "104"]
[EventDate "2022.??.??"]
[TimeControl "60"]

1. e4 {[%emt 0:00:04]} e5 {[%emt 0:00:30]} 2. Nf3 {[%emt 0:00:01]} Nc6 {
[%emt 0:00:26]} 3. Bb5 {[%emt 0:00:09]} Qf6 {[%emt 0:00:43]} 4. c3 {[%emt 0:00:
00]} Bc5 {[%emt 0:01:23]} 5. O-O {[%emt 0:02:13]} Nge7 {[%emt 0:01:23]} 6. d3 {
[%emt 0:06:25]} h6 {[%emt 0:00:24]} 7. Be3 {[%emt 0:00:35]} d6 {[%emt 0:01:09]}
8. d4 {[%emt 0:01:12]} exd4 {[%emt 0:01:34]} 9. cxd4 {[%emt 0:00:14]} Bb4 {
[%emt 0:00:44]} 10. d5 {[%emt 0:13:51]} a6 {[%emt 0:00:39]} 11. Bd4 {[%emt 0:
00:00]} Qg6 {[%emt 0:00:34]} 12. Ba4 {[%emt 0:08:05]} b5 {[%emt 0:00:22]} 13.
Bc2 {[%emt 0:05:02]} Nxd4 {[%emt 0:00:54]} 14. Qxd4 {[%emt 0:00:36]} Bc5 {
[%emt 0:00:33]} 15. Qd3 {[%emt 0:00:26]} O-O {[%emt 0:02:25]} 16. Nbd2 {
[%emt 0:01:34]} f5 {[%emt 0:00:45]} 17. e5 {[%emt 0:04:42]} Bb7 {[%emt 0:01:02]
} 18. Bb3 {[%emt 0:00:50]} Kh8 {[%emt 0:00:33]} 19. Rac1 {[%emt 0:05:24]} Rad8
{[%emt 0:02:00]} 20. Rfe1 {[%emt 0:09:05]} Qg4 {[%emt 0:01:42]} 21. Nf1 {
[%emt 0:04:28]} Ng6 {[%emt 0:00:44]} 22. h3 {[%emt 0:01:01]} Nf4 {[%emt 0:00:
00]} 23. hxg4 {[%emt 0:00:50]} Nxd3 {[%emt 0:00:43]} 24. Rc2 {[%emt 0:04:37]}
Nxe1 {[%emt 0:00:42]} 25. Nxe1 {[%emt 0:00:10]} fxg4 {[%emt 0:00:52]} 26. e6 {
[%emt 0:00:23]} Rde8 {[%emt 0:00:41]} 27. Ng3 {[%emt 0:01:02]} a5 {[%emt 0:00:
00]} 28. a4 {[%emt 0:00:31]} c6 {[%emt 0:00:55]} 29. dxc6 {[%emt 0:03:08]} Bxc6
{[%emt 0:00:44]} 30. axb5 {[%emt 0:00:13]} Bxb5 {[%emt 0:00:21]} 31. Ne4 {
[%emt 0:00:23]} Rf5 {[%emt 0:01:30]} 32. Rd2 {[%emt 0:01:22]} Bb4 {[%emt 0:00:
00]} 33. Rxd6 {[%emt 0:00:26]} Re5 {[%emt 0:01:20]} 34. Rd4 {[%emt 0:01:52]}
Bxe1 {[%emt 0:00:39]} 35. Nd6 {[%emt 0:00:08]} Re2 {[%emt 0:03:14]} 36. Nxb5 {
[%emt 0:00:52]} Bxf2+ {[%emt 0:00:34]} 37. Kf1 {[%emt 0:00:06]} Bxd4 {[%emt 0:
00:00]} 38. Kxe2 {[%emt 0:00:06]} Bxb2 {[%emt 0:00:29]} 39. Nd6 {[%emt 0:00:32]
} Re7 {[%emt 0:00:28]} 40. Nf5 {[%emt 0:00:07]} Re8 {[%emt 0:02:45]} 41. Nd6 {
[%emt 0:04:37]} a4 {[%emt 0:00:57]} 42. Ba2 {[%emt 0:03:48]} Re7 {[%emt 0:00:
00]} 43. Nf5 {[%emt 0:00:27]} Bf6 {[%emt 0:00:42]} 44. Nxe7 {[%emt 0:00:14]}
Bxe7 {[%emt 0:00:17]} 45. Ke3 {[%emt 0:00:22]} g5 {[%emt 0:00:17]} 46. Ke4 {
[%emt 0:02:07]} Kg7 {[%emt 0:02:59]} 47. Kf5 {[%emt 0:00:00]} g3 {[%emt 0:00:
00]} 48. Bb1 {[%emt 0:07:00]} h5 {[%emt 0:00:23]} 49. Bc2 {[%emt 0:03:13]} h4 {
[%emt 0:00:28]} 50. Kg4 {[%emt 0:01:29]} a3 {[%emt 0:00:19]} 51. Bb1 {[%emt 0:
00:00]} Kf6 {[%emt 0:00:14]} 52. Ba2 {[%emt 0:00:25]} Ke5 {[%emt 0:07:04]} 0-1

[Event "44th Chess Olympiad Open 2022"]
[Site "Chennai"]
[Date "2022.07.31"]
[Round "3.72"]
[White "Esungi, Guy Botetsi"]
[Black "Mannhart, Marcel"]
[Result "0-1"]
[WhiteElo "1481"]
[BlackElo "2110"]
[Annotator "NA"]
[PlyCount "80"]
[EventDate "2022.??.??"]
[TimeControl "60"]

1. e4 {[%emt 0:00:12]} c5 {[%emt 0:00:15]} 2. Nc3 {[%emt 0:00:27]} Nc6 {
[%emt 0:00:29]} 3. Nf3 {[%emt 0:00:36]} g6 {[%emt 0:00:21]} 4. d3 {[%emt 0:00:
00]} Bg7 {[%emt 0:00:42]} 5. Bd2 {[%emt 0:00:31]} d6 {[%emt 0:04:28]} 6. Be2 {
[%emt 0:00:58]} e5 {[%emt 0:02:13]} 7. O-O {[%emt 0:00:50]} Nge7 {[%emt 0:00:
00]} 8. Qc1 {[%emt 0:03:41]} h6 {[%emt 0:00:47]} 9. a3 {[%emt 0:01:16]} b6 {
[%emt 0:09:09]} 10. Qb1 {[%emt 0:01:17]} f5 {[%emt 0:08:27]} 11. b4 {[%emt 0:
00:00]} f4 {[%emt 0:02:39]} 12. b5 {[%emt 0:00:55]} Nb8 {[%emt 0:07:51]} 13. a4
{[%emt 0:03:41]} Be6 {[%emt 0:00:38]} 14. Ra3 {[%emt 0:03:32]} Nd7 {[%emt 0:00:
00]} 15. Qa1 {[%emt 0:00:43]} g5 {[%emt 0:00:56]} 16. a5 {[%emt 0:01:53]} Rb8 {
[%emt 0:00:30]} 17. axb6 {[%emt 0:04:13]} axb6 {[%emt 0:00:13]} 18. Ra7 {
[%emt 0:04:15]} O-O {[%emt 0:04:55]} 19. Nb1 {[%emt 0:03:18]} Bf6 {[%emt 0:00:
00]} 20. c4 {[%emt 0:00:51]} g4 {[%emt 0:00:26]} 21. Ne1 {[%emt 0:01:33]} h5 {
[%emt 0:01:21]} 22. f3 {[%emt 0:04:53]} Bg7 {[%emt 0:07:00]} 23. Nc2 {[%emt 0:
00:00]} Nc8 {[%emt 0:01:47]} 24. Ra2 {[%emt 0:02:50]} Qh4 {[%emt 0:00:43]} 25.
Be1 {[%emt 0:02:04]} g3 {[%emt 0:00:21]} 26. Bxg3 {[%emt 0:16:56]} fxg3 {
[%emt 0:00:48]} 27. hxg3 {[%emt 0:01:51]} Qxg3 {[%emt 0:00:30]} 28. Nc3 {
[%emt 0:01:13]} Bh6 {[%emt 0:04:57]} 29. Qe1 {[%emt 0:04:07]} Qg6 {[%emt 0:00:
00]} 30. Qh4 {[%emt 0:02:31]} Bf4 {[%emt 0:01:02]} 31. Nd5 {[%emt 0:06:24]} Bg3
{[%emt 0:04:18]} 32. Qh1 {[%emt 0:05:38]} Bxd5 {[%emt 0:10:22]} 33. cxd5 {
[%emt 0:00:26]} Rf4 {[%emt 0:00:32]} 34. Qh3 {[%emt 0:01:44]} Nf8 {[%emt 0:00:
00]} 35. Ne3 {[%emt 0:01:43]} Rh4 {[%emt 0:01:36]} 36. Qf5 {[%emt 0:03:57]}
Bh2+ {[%emt 0:00:35]} 37. Kh1 {[%emt 0:00:54]} Bf4+ {[%emt 0:00:13]} 38. Qh3 {
[%emt 0:03:18]} Rxh3+ {[%emt 0:00:33]} 39. gxh3 {[%emt 0:00:55]} Bxe3 {[%emt 0:
00:00]} 40. Raa1 {[%emt 0:00:27]} Kh7 {[%emt 0:02:15]} 0-1

[Event "44th Chess Olympiad Open 2022"]
[Site "Chennai"]
[Date "2022.07.31"]
[Round "3.73"]
[White "Isam, Gaith"]
[Black "Sharikhan, Shawal"]
[Result "1-0"]
[WhiteElo "1828"]
[BlackElo "1789"]
[Annotator "NA"]
[PlyCount "131"]
[EventDate "2022.??.??"]
[TimeControl "60"]

1. e4 {[%emt 0:00:05]} c5 {[%emt 0:00:28]} 2. Nc3 {[%emt 0:00:23]} Nc6 {
[%emt 0:00:09]} 3. f4 {[%emt 0:00:11]} e6 {[%emt 0:00:25]} 4. Nf3 {[%emt 0:00:
00]} d5 {[%emt 0:00:43]} 5. Bb5 {[%emt 0:00:17]} Nge7 {[%emt 0:00:24]} 6. exd5
{[%emt 0:05:43]} exd5 {[%emt 0:00:43]} 7. Qe2 {[%emt 0:00:10]} Qd6 {[%emt 0:00:
00]} 8. Bxc6+ {[%emt 0:06:46]} bxc6 {[%emt 0:02:33]} 9. d3 {[%emt 0:00:52]} g6
{[%emt 0:02:04]} 10. Qe5 {[%emt 0:03:41]} Qxe5+ {[%emt 0:00:12]} 11. Nxe5 {
[%emt 0:00:28]} f6 {[%emt 0:02:20]} 12. Nf3 {[%emt 0:00:23]} Kf7 {[%emt 0:00:
00]} 13. h3 {[%emt 0:07:55]} h5 {[%emt 0:05:11]} 14. b3 {[%emt 0:05:15]} Nf5 {
[%emt 0:02:29]} 15. Na4 {[%emt 0:07:24]} Bd6 {[%emt 0:02:11]} 16. Bd2 {[%emt 0:
00:00]} Ng3 {[%emt 0:04:26]} 17. Rg1 {[%emt 0:02:03]} Bd7 {[%emt 0:13:32]} 18.
Kf2 {[%emt 0:00:48]} Nf5 {[%emt 0:00:30]} 19. Rad1 {[%emt 0:06:39]} Rae8 {
[%emt 0:03:24]} 20. Rge1 {[%emt 0:02:37]} Ne7 {[%emt 0:07:03]} 21. c4 {[%emt 0:
00:00]} d4 {[%emt 0:03:42]} 22. Bc1 {[%emt 0:03:01]} Bf5 {[%emt 0:04:30]} 23.
Nh4 {[%emt 0:07:05]} Bd7 {[%emt 0:02:32]} 24. Nf3 {[%emt 0:03:23]} Nc8 {
[%emt 0:01:20]} 25. Ba3 {[%emt 0:01:46]} Bxf4 {[%emt 0:01:18]} 26. Bxc5 {
[%emt 0:00:19]} Bf5 {[%emt 0:06:58]} 27. Nxd4 {[%emt 0:02:06]} Rxe1 {[%emt 0:
00:00]} 28. Kxe1 {[%emt 0:00:35]} Bg3+ {[%emt 0:01:54]} 29. Kd2 {[%emt 0:03:36]
} Bd7 {[%emt 0:01:25]} 30. Ne2 {[%emt 0:00:38]} Bc7 {[%emt 0:01:49]} 31. Rf1 {
[%emt 0:00:44]} Rd8 {[%emt 0:00:55]} 32. Bd4 {[%emt 0:02:13]} f5 {[%emt 0:00:
00]} 33. Be3 {[%emt 0:03:04]} Re8 {[%emt 0:02:13]} 34. a3 {[%emt 0:02:17]} Nb6
{[%emt 0:00:28]} 35. Nc5 {[%emt 0:00:39]} Bc8 {[%emt 0:00:43]} 36. Nd4 {
[%emt 0:00:33]} Bd6 {[%emt 0:01:07]} 37. b4 {[%emt 0:07:29]} a5 {[%emt 0:03:53]
} 38. Nxc6 {[%emt 0:00:37]} axb4 {[%emt 0:00:32]} 39. axb4 {[%emt 0:00:23]} Nd7
{[%emt 0:01:40]} 40. Ne4 {[%emt 0:00:38]} Bc7 {[%emt 0:01:19]} 41. Ng5+ {
[%emt 0:30:22]} Kg8 {[%emt 0:30:58]} 42. Bf4 {[%emt 0:00:40]} Bxf4+ {[%emt 0:
00:00]} 43. Rxf4 {[%emt 0:00:02]} Bb7 {[%emt 0:00:22]} 44. b5 {[%emt 0:00:35]}
Bxc6 {[%emt 0:01:34]} 45. bxc6 {[%emt 0:00:18]} Ne5 {[%emt 0:00:09]} 46. Rd4 {
[%emt 0:01:06]} Nxc6 {[%emt 0:00:16]} 47. Rd6 {[%emt 0:00:14]} Ne7 {[%emt 0:00:
00]} 48. Re6 {[%emt 0:01:33]} Kf8 {[%emt 0:00:13]} 49. h4 {[%emt 0:00:25]} Ra8
{[%emt 0:00:16]} 50. g3 {[%emt 0:01:12]} Ra2+ {[%emt 0:00:15]} 51. Kc3 {
[%emt 0:00:53]} Rg2 {[%emt 0:00:11]} 52. Re3 {[%emt 0:00:47]} Ng8 {[%emt 0:00:
00]} 53. d4 {[%emt 0:00:32]} Nf6 {[%emt 0:00:21]} 54. d5 {[%emt 0:00:51]} Ng4 {
[%emt 0:00:38]} 55. Rd3 {[%emt 0:06:00]} Ne5 {[%emt 0:00:00]} 56. Ne6+ {
[%emt 0:00:00]} Ke7 {[%emt 0:00:00]} 57. Nf4 {[%emt 0:00:00]} Rg1 {[%emt 0:00:
00]} 58. Ne2 {[%emt 0:00:00]} Rg2 {[%emt 0:00:00]} 59. Re3 {[%emt 0:00:00]} Kf6
{[%emt 0:00:00]} 60. Kd4 {[%emt 0:00:00]} Nf7 {[%emt 0:00:00]} 61. Re6+ {
[%emt 0:00:00]} Kg7 {[%emt 0:00:00]} 62. c5 {[%emt 0:00:00]} g5 {[%emt 0:00:00]
} 63. hxg5 {[%emt 0:00:00]} Nxg5 {[%emt 0:00:00]} 64. Re3 {[%emt 0:00:00]} Kf6
{[%emt 0:00:00]} 65. c6 {[%emt 0:00:00]} Ne4 {[%emt 0:00:00]} 66. c7 {[%emt 0:
00:00]} 1-0

[Event "44th Chess Olympiad Open 2022"]
[Site "Chennai"]
[Date "2022.07.31"]
[Round "3.73"]
[White "Yussof, Pg Abd Rahman"]
[Black "seder mohamad"]
[Result "0-1"]
[WhiteElo "1804"]
[BlackElo "1950"]
[Annotator "NA"]
[PlyCount "72"]
[EventDate "2022.??.??"]
[TimeControl "60"]

1. e4 {[%emt 0:00:37]} e6 {[%emt 0:00:13]} 2. d4 {[%emt 0:01:17]} d5 {[%emt 0:
00:00]} 3. exd5 {[%emt 0:01:49]} exd5 {[%emt 0:00:22]} 4. Bd3 {[%emt 0:01:58]}
Bd6 {[%emt 0:00:34]} 5. Nf3 {[%emt 0:01:14]} Ne7 {[%emt 0:01:40]} 6. O-O {
[%emt 0:00:53]} Bg4 {[%emt 0:02:39]} 7. Bg5 {[%emt 0:01:40]} f6 {[%emt 0:00:42]
} 8. Bh4 {[%emt 0:00:39]} Nbc6 {[%emt 0:00:24]} 9. c3 {[%emt 0:01:08]} Qd7 {
[%emt 0:00:14]} 10. Nbd2 {[%emt 0:01:59]} O-O-O {[%emt 0:02:39]} 11. b4 {
[%emt 0:02:15]} Nf5 {[%emt 0:00:47]} 12. Bg3 {[%emt 0:04:00]} Nxg3 {[%emt 0:00:
00]} 13. fxg3 {[%emt 0:00:40]} Ne7 {[%emt 0:06:47]} 14. Qc2 {[%emt 0:07:33]} g5
{[%emt 0:08:37]} 15. Nb3 {[%emt 0:02:46]} h5 {[%emt 0:07:29]} 16. Nc5 {[%emt 0:
00:00]} Bxc5 {[%emt 0:03:51]} 17. bxc5 {[%emt 0:00:19]} h4 {[%emt 0:01:34]} 18.
gxh4 {[%emt 0:03:06]} gxh4 {[%emt 0:00:28]} 19. Kh1 {[%emt 0:06:09]} Nf5 {
[%emt 0:06:47]} 20. Bxf5 {[%emt 0:00:49]} Bxf5 {[%emt 0:00:32]} 21. Qf2 {
[%emt 0:00:49]} Rh5 {[%emt 0:09:40]} 22. Rfe1 {[%emt 0:06:17]} Rg8 {[%emt 0:00:
00]} 23. Re3 {[%emt 0:02:02]} Be4 {[%emt 0:02:11]} 24. Kg1 {[%emt 0:06:22]} f5
{[%emt 0:04:21]} 25. Rae1 {[%emt 0:04:01]} f4 {[%emt 0:10:49]} 26. Rxe4 {
[%emt 0:00:37]} dxe4 {[%emt 0:00:03]} 27. Rxe4 {[%emt 0:00:29]} h3 {[%emt 0:00:
00]} 28. g3 {[%emt 0:05:35]} fxg3 {[%emt 0:05:17]} 29. hxg3 {[%emt 0:00:41]}
Qh7 {[%emt 0:04:00]} 30. Qe1 {[%emt 0:05:05]} Qf7 {[%emt 0:03:37]} 31. Kh2 {
[%emt 0:02:54]} Rf5 {[%emt 0:00:19]} 32. Re7 {[%emt 0:02:02]} Qf8 {[%emt 0:00:
00]} 33. Qe6+ {[%emt 0:01:25]} Kb8 {[%emt 0:00:01]} 34. Ne5 {[%emt 0:07:47]}
Rf2+ {[%emt 0:00:22]} 35. Kxh3 {[%emt 0:00:59]} Rxg3+ {[%emt 0:00:03]} 36. Kh4
{[%emt 0:03:03]} Qf4+ {[%emt 0:01:55]} 0-1

[Event "44th Chess Olympiad Open 2022"]
[Site "Chennai"]
[Date "2022.07.31"]
[Round "3.73"]
[White "Shawabke Ziyad"]
[Black "Ahmad, Md Siraj Munir"]
[Result "1/2-1/2"]
[WhiteElo "1786"]
[BlackElo "2035"]
[Annotator "NA RC"]
[PlyCount "37"]
[EventDate "2022.??.??"]
[TimeControl "60"]

1. c4 {[%emt 0:01:49]} Nf6 {[%emt 0:01:02]} 2. Nf3 {[%emt 0:00:21]} e6 {
[%emt 0:02:04]} 3. Nc3 {[%emt 0:01:05]} b6 {[%emt 0:01:55]} 4. g3 {[%emt 0:00:
00]} Bb7 {[%emt 0:01:09]} 5. Bg2 {[%emt 0:00:18]} Bb4 {[%emt 0:03:31]} 6. Qc2 {
[%emt 0:01:22]} O-O {[%emt 0:02:50]} 7. O-O {[%emt 0:05:08]} d5 {[%emt 0:08:33]
} 8. a3 {[%emt 0:14:18]} Be7 {[%emt 0:05:34]} 9. cxd5 {[%emt 0:01:12]} exd5 {
[%emt 0:00:53]} 10. d4 {[%emt 0:00:52]} a5 {[%emt 0:12:07]} 11. Ne5 {[%emt 0:
00:00]} Nbd7 {[%emt 0:16:04]} 12. Rd1 {[%emt 0:17:23]} Rc8 {[%emt 0:01:30]} 13.
Qb3 {[%emt 0:07:24]} c6 {[%emt 0:05:37]} 14. Bh3 {[%emt 0:05:43]} b5 {[%emt 0:
00:00]} 15. Bg5 {[%emt 0:01:43]} Rc7 {[%emt 0:01:28]} 16. Bf4 {[%emt 0:07:41]}
Rc8 {[%emt 0:08:40]} 17. Bg5 {[%emt 0:00:35]} Rc7 {[%emt 0:01:15]} 18. Bf4 {
[%emt 0:01:53]} Rc8 {[%emt 0:00:21]} 19. Bg5 {[%emt 0:00:03]} 1/2-1/2

[Event "44th Chess Olympiad Open 2022"]
[Site "Chennai"]
[Date "2022.07.31"]
[Round "3.74"]
[White "Mafnas, Peter"]
[Black "Nxumalo, Vuyo"]
[Result "0-1"]
[WhiteElo "2039"]
[BlackElo "1493"]
[Annotator "NA RC"]
[PlyCount "60"]
[EventDate "2022.??.??"]
[TimeControl "60"]

1. d4 {[%emt 0:01:01]} Nf6 {[%emt 0:00:41]} 2. c4 {[%emt 0:00:07]} g6 {[%emt 0:
00:00]} 3. Nf3 {[%emt 0:00:13]} Bg7 {[%emt 0:01:00]} 4. g3 {[%emt 0:00:09]} d6
{[%emt 0:00:38]} 5. Bg2 {[%emt 0:00:03]} O-O {[%emt 0:01:12]} 6. Nc3 {[%emt 0:
00:00]} Nbd7 {[%emt 0:03:11]} 7. O-O {[%emt 0:00:07]} Re8 {[%emt 0:00:36]} 8.
b3 {[%emt 0:00:13]} c6 {[%emt 0:01:15]} 9. Bb2 {[%emt 0:00:06]} e5 {[%emt 0:00:
00]} 10. e3 {[%emt 0:00:36]} e4 {[%emt 0:01:30]} 11. Nd2 {[%emt 0:00:37]} d5 {
[%emt 0:00:32]} 12. Rc1 {[%emt 0:00:41]} Nf8 {[%emt 0:03:11]} 13. cxd5 {
[%emt 0:00:55]} cxd5 {[%emt 0:00:17]} 14. Nb5 {[%emt 0:09:16]} Ne6 {[%emt 0:00:
00]} 15. Qc2 {[%emt 0:01:56]} Re7 {[%emt 0:05:28]} 16. Ba3 {[%emt 0:00:27]} Rd7
{[%emt 0:00:41]} 17. Nc3 {[%emt 0:04:40]} Rc7 {[%emt 0:01:33]} 18. Qb2 {
[%emt 0:00:36]} a6 {[%emt 0:02:08]} 19. Na4 {[%emt 0:00:25]} b5 {[%emt 0:01:58]
} 20. Rxc7 {[%emt 0:00:29]} Qxc7 {[%emt 0:00:25]} 21. Rc1 {[%emt 0:00:04]} Qd8
{[%emt 0:00:44]} 22. Nc5 {[%emt 0:00:23]} Rb8 {[%emt 0:01:50]} 23. Nxe6 {
[%emt 0:01:53]} Bxe6 {[%emt 0:00:32]} 24. Bc5 {[%emt 0:00:27]} Nd7 {[%emt 0:00:
00]} 25. Bd6 {[%emt 0:22:29]} Rc8 {[%emt 0:01:08]} 26. b4 {[%emt 0:02:51]} Nb6
{[%emt 0:01:24]} 27. Rxc8 {[%emt 0:03:30]} Qxc8 {[%emt 0:00:25]} 28. Bc5 {
[%emt 0:00:19]} Nc4 {[%emt 0:00:59]} 29. Qc3 {[%emt 0:03:14]} Bh3 {[%emt 0:00:
00]} 30. Nxc4 {[%emt 0:12:17]} bxc4 {[%emt 0:04:59]} 0-1

[Event "44th Chess Olympiad Open 2022"]
[Site "Chennai"]
[Date "2022.07.31"]
[Round "3.74"]
[White "Soriano, Rudolph P."]
[Black "Hlophe, Smilo"]
[Result "1-0"]
[WhiteElo "1824"]
[BlackElo "1731"]
[Annotator "NA RC"]
[PlyCount "91"]
[EventDate "2022.??.??"]
[TimeControl "60"]

1. Nf3 {[%emt 0:00:09]} c5 {[%emt 0:00:04]} 2. c4 {[%emt 0:00:13]} Nc6 {
[%emt 0:00:11]} 3. d4 {[%emt 0:00:14]} cxd4 {[%emt 0:00:08]} 4. Nxd4 {[%emt 0:
00:00]} g6 {[%emt 0:00:14]} 5. Nc3 {[%emt 0:01:31]} Bg7 {[%emt 0:00:08]} 6. e3
{[%emt 0:01:31]} Nf6 {[%emt 0:00:11]} 7. Be2 {[%emt 0:01:33]} e5 {[%emt 0:00:
00]} 8. Nb3 {[%emt 0:03:18]} d6 {[%emt 0:00:09]} 9. e4 {[%emt 0:01:51]} O-O {
[%emt 0:00:12]} 10. O-O {[%emt 0:00:27]} Be6 {[%emt 0:00:14]} 11. Be3 {[%emt 0:
00:00]} Rc8 {[%emt 0:02:58]} 12. f3 {[%emt 0:02:21]} a6 {[%emt 0:02:05]} 13.
Qd2 {[%emt 0:01:00]} Ne7 {[%emt 0:05:56]} 14. Nd5 {[%emt 0:02:46]} Bxd5 {
[%emt 0:00:55]} 15. cxd5 {[%emt 0:04:18]} Nh5 {[%emt 0:03:29]} 16. g3 {[%emt 0:
00:00]} f5 {[%emt 0:00:07]} 17. Bg5 {[%emt 0:01:59]} f4 {[%emt 0:01:12]} 18. g4
{[%emt 0:01:18]} Nf6 {[%emt 0:00:17]} 19. Bh4 {[%emt 0:01:00]} h6 {[%emt 0:00:
00]} 20. Rac1 {[%emt 0:06:33]} Qd7 {[%emt 0:01:02]} 21. Qb4 {[%emt 0:02:55]}
Rxc1 {[%emt 0:00:55]} 22. Rxc1 {[%emt 0:00:52]} Rc8 {[%emt 0:00:55]} 23. Rxc8+
{[%emt 0:02:53]} Nxc8 {[%emt 0:01:45]} 24. Be1 {[%emt 0:01:16]} h5 {[%emt 0:00:
00]} 25. g5 {[%emt 0:02:59]} Nh7 {[%emt 0:01:58]} 26. h4 {[%emt 0:00:16]} Bf8 {
[%emt 0:04:24]} 27. Kh2 {[%emt 0:00:48]} Be7 {[%emt 0:00:28]} 28. Bf1 {[%emt 0:
00:00]} Qc7 {[%emt 0:04:25]} 29. Bc3 {[%emt 0:35:57]} Na7 {[%emt 0:34:58]} 30.
a4 {[%emt 0:00:00]} Nc8 {[%emt 0:02:07]} 31. Na5 {[%emt 0:00:00]} Nb6 {[%emt 0:
00:00]} 32. Nxb7 {[%emt 0:00:00]} Bxg5 {[%emt 0:05:07]} 33. hxg5 {[%emt 0:00:
00]} Nxg5 {[%emt 0:00:05]} 34. Bg2 {[%emt 0:00:00]} Qxb7 {[%emt 0:01:34]} 35.
a5 {[%emt 0:00:00]} Qe7 {[%emt 0:00:28]} 36. axb6 {[%emt 0:00:00]} Nxf3+ {
[%emt 0:00:06]} 37. Bxf3 {[%emt 0:00:00]} Qh4+ {[%emt 0:00:06]} 38. Kg1 {
[%emt 0:00:00]} Qg3+ {[%emt 0:00:37]} 39. Kf1 {[%emt 0:00:00]} Qxf3+ {[%emt 0:
00:00]} 40. Ke1 {[%emt 0:00:00]} Qe3+ {[%emt 0:07:27]} 41. Kd1 {[%emt 0:10:59]}
f3 {[%emt 0:30:55]} 42. b7 {[%emt 0:06:54]} Qe2+ {[%emt 0:01:03]} 43. Kc1 {
[%emt 0:00:52]} f2 {[%emt 0:02:02]} 44. b8=Q+ {[%emt 0:00:26]} Kg7 {[%emt 0:00:
00]} 45. Bxe5+ {[%emt 0:00:45]} Kh6 {[%emt 0:01:14]} 46. Bf4+ {[%emt 0:00:29]}
1-0

[Event "44th Chess Olympiad Open 2022"]
[Site "Chennai"]
[Date "2022.07.31"]
[Round "3.74"]
[White "Mbongeni, Mabuza"]
[Black "Prudente, Elmer"]
[Result "0-1"]
[WhiteElo "1669"]
[BlackElo "1995"]
[Annotator "NA RC"]
[PlyCount "126"]
[EventDate "2022.??.??"]
[TimeControl "60"]

1. d4 {[%emt 0:00:15]} g6 {[%emt 0:00:13]} 2. Nf3 {[%emt 0:00:30]} Nf6 {
[%emt 0:00:11]} 3. g3 {[%emt 0:01:15]} Bg7 {[%emt 0:00:17]} 4. Bg2 {[%emt 0:00:
00]} O-O {[%emt 0:01:12]} 5. O-O {[%emt 0:00:05]} d5 {[%emt 0:01:53]} 6. b3 {
[%emt 0:01:11]} Ne4 {[%emt 0:01:54]} 7. Bb2 {[%emt 0:00:27]} c5 {[%emt 0:00:43]
} 8. e3 {[%emt 0:02:39]} Nc6 {[%emt 0:01:38]} 9. Nbd2 {[%emt 0:00:17]} Bg4 {
[%emt 0:02:11]} 10. h3 {[%emt 0:01:23]} Bf5 {[%emt 0:00:29]} 11. c3 {[%emt 0:
00:00]} cxd4 {[%emt 0:01:51]} 12. cxd4 {[%emt 0:00:08]} Nxd2 {[%emt 0:02:32]}
13. Qxd2 {[%emt 0:00:32]} Qd7 {[%emt 0:00:45]} 14. Kh2 {[%emt 0:00:30]} Rfc8 {
[%emt 0:01:16]} 15. Rac1 {[%emt 0:00:37]} Be4 {[%emt 0:02:50]} 16. Rfd1 {
[%emt 0:04:22]} Qd6 {[%emt 0:03:41]} 17. a3 {[%emt 0:01:09]} Rc7 {[%emt 0:00:
00]} 18. Ne5 {[%emt 0:04:08]} Bxg2 {[%emt 0:01:13]} 19. Kxg2 {[%emt 0:00:22]}
Rac8 {[%emt 0:04:37]} 20. Nd3 {[%emt 0:10:20]} b6 {[%emt 0:01:42]} 21. b4 {
[%emt 0:01:48]} e6 {[%emt 0:03:59]} 22. Nf4 {[%emt 0:02:49]} a5 {[%emt 0:06:25]
} 23. Nd3 {[%emt 0:08:18]} Bf8 {[%emt 0:06:00]} 24. Rc3 {[%emt 0:08:18]} axb4 {
[%emt 0:03:37]} 25. axb4 {[%emt 0:00:08]} Na7 {[%emt 0:00:36]} 26. Rdc1 {
[%emt 0:04:08]} Nb5 {[%emt 0:00:33]} 27. Rxc7 {[%emt 0:00:06]} Rxc7 {[%emt 0:
00:00]} 28. Rc2 {[%emt 0:01:38]} Rc4 {[%emt 0:01:17]} 29. Rc1 {[%emt 0:11:54]}
Qc7 {[%emt 0:01:30]} 30. Qd1 {[%emt 0:06:45]} Rxc1 {[%emt 0:05:16]} 31. Qxc1 {
[%emt 0:00:12]} Qc4 {[%emt 0:00:04]} 32. Qd2 {[%emt 0:01:00]} f6 {[%emt 0:00:
00]} 33. f3 {[%emt 0:02:32]} Bd6 {[%emt 0:01:41]} 34. Kf2 {[%emt 0:00:42]} Qc7
{[%emt 0:00:47]} 35. f4 {[%emt 0:00:44]} Qc4 {[%emt 0:00:16]} 36. Kf3 {[%emt 0:
00:00]} h5 {[%emt 0:04:29]} 37. h4 {[%emt 0:01:23]} Kf7 {[%emt 0:01:58]} 38.
Kf2 {[%emt 0:01:24]} Be7 {[%emt 0:02:10]} 39. Kg2 {[%emt 0:02:49]} Nd6 {
[%emt 0:03:13]} 40. Nf2 {[%emt 0:00:11]} Nc8 {[%emt 0:03:59]} 41. Bc3 {[%emt 0:
00:00]} Na7 {[%emt 0:31:17]} 42. Qb2 {[%emt 0:03:53]} Nc6 {[%emt 0:01:27]} 43.
g4 {[%emt 0:08:40]} hxg4 {[%emt 0:02:50]} 44. Nxg4 {[%emt 0:00:12]} Bxb4 {
[%emt 0:01:00]} 45. Bxb4 {[%emt 0:00:43]} Nxb4 {[%emt 0:00:22]} 46. Qa3 {
[%emt 0:00:49]} Qa2+ {[%emt 0:00:20]} 47. Qxa2 {[%emt 0:00:15]} Nxa2 {[%emt 0:
00:00]} 48. Kf2 {[%emt 0:00:07]} Nc3 {[%emt 0:00:24]} 49. Ke1 {[%emt 0:00:20]}
Ne4 {[%emt 0:00:35]} 50. Nh2 {[%emt 0:00:00]} Kg7 {[%emt 0:00:00]} 51. Ke2 {
[%emt 0:00:00]} Ng3+ {[%emt 0:00:00]} 52. Kd3 {[%emt 0:00:00]} Kh6 {[%emt 0:00:
00]} 53. Ng4+ {[%emt 0:00:00]} Kg7 {[%emt 0:00:00]} 54. Kc3 {[%emt 0:00:00]}
Nf5 {[%emt 0:00:00]} 55. Kb4 {[%emt 0:00:00]} Nxh4 {[%emt 0:00:00]} 56. Kb5 {
[%emt 0:00:00]} Ng2 {[%emt 0:00:00]} 57. Kxb6 {[%emt 0:00:00]} f5 {[%emt 0:00:
00]} 58. Nf2 {[%emt 0:00:00]} Nxe3 {[%emt 0:00:00]} 59. Kc6 {[%emt 0:00:00]}
Nc2 {[%emt 0:00:00]} 60. Kd6 {[%emt 0:00:00]} Kf6 {[%emt 0:00:00]} 61. Nh3 {
[%emt 0:00:00]} Nxd4 {[%emt 0:00:00]} 62. Ng5 {[%emt 0:00:00]} Ne2 {[%emt 0:00:
00]} 63. Nxe6 {[%emt 0:00:00]} d4 {[%emt 0:00:00]} 0-1